bitfinex/quotes_SOLUSD_20250406
["timestamp","ask_amount","ask_price","bid_price","bid_amount"]
[1743971894683,68.54216747,106.86,106.78,0.28432314]
[1743971894883,26.0,106.85,106.78,0.5]
[1743971895075,68.47916747,106.83,106.78,0.5]
[1743971895274,26.0,106.85,106.77,0.28432314]
[1743971895275,94.47916747,106.85,106.79,68.47916747]
[1743971895484,68.47916747,106.82,106.76,0.5]
[1743971895899,26.0,106.83,106.77,0.5]
[1743971896288,68.47916747,106.81,106.75,68.47916747]
[1743971896494,68.47916747,106.81,106.76,68.47916747]
[1743971896696,68.47916747,106.81,106.8,1.0]
[1743971896895,68.47916747,106.82,106.8,1.0]
[1743971897083,68.47916747,106.81,106.8,1.0]
[1743971897582,26.0,106.83,106.8,1.0]
[1743971897979,136.95833494,106.81,106.71,0.5]
[1743971898196,68.47916747,106.8,106.72,68.97916747]
[1743971898502,26.0,106.76,106.7,0.53]
[1743971898711,68.47916747,106.74,106.7,0.03]
[1743971898878,26.0,106.75,106.7,0.03]
[1743971899087,26.0,106.76,106.71,0.5]
[1743971899295,292.42,106.79,106.74,68.47916747]
[1743971899504,292.42,106.79,106.75,0.28432314]
[1743971899692,360.89916747,106.79,106.74,0.5]
[1743971899889,68.47916747,106.77,106.72,0.5]
[1743971900092,18.79181043,106.78,106.7,0.53]
[1743971900295,68.47916747,106.72,106.7,0.03]
[1743971900496,26.0,106.75,106.7,0.03]
[1743971900794,68.47916747,106.73,106.7,0.53]
[1743971901117,68.47916747,106.72,106.7,0.03]
[1743971901314,26.0,106.76,106.7,0.03]
[1743971901501,68.47916747,106.71,106.7,0.03]
[1743971901827,68.47916747,106.73,106.7,0.03]
[1743971902026,26.0,106.75,106.7,0.03]
[1743971902228,68.47916747,106.72,106.7,0.03]
[1743971902725,68.47916747,106.71,106.7,0.03]
[1743971902896,68.47916747,106.72,106.7,0.03]
[1743971903095,68.47916747,106.73,106.7,0.03]
[1743971903325,68.47916747,106.73,106.7,0.53]
[1743971903628,26.0,106.76,106.7,0.53]
[1743971903995,26.0,106.74,106.7,0.03]
[1743971904302,68.47916747,106.71,106.7,0.03]
[1743971905222,26.0,106.71,106.7,0.03]
[1743971905418,68.47916747,106.71,106.7,0.03]
[1743971905893,68.47916747,106.71,106.62,0.5]
[1743971905894,26.0,106.68,106.62,0.5]
[1743971906089,68.47916747,106.66,106.62,0.5]
[1743971906296,68.47916747,106.64,106.62,0.5]
[1743971906509,68.47916747,106.63,106.59,0.5]
[1743971906720,18.79181043,106.67,106.59,0.5]
[1743971906923,292.54,106.68,106.62,0.5]
[1743971907125,292.54,106.68,106.66,0.5]
[1743971907316,292.54,106.68,106.67,0.5]
[1743971907638,68.47916747,106.71,106.67,0.5]
[1743971908132,361.01916747,106.74,106.63,0.5]
[1743971908133,68.47916747,106.68,106.63,0.5]
[1743971908343,68.47916747,106.65,106.64,0.5]
[1743971908534,39.07613357,106.73,106.64,0.5]
[1743971908706,68.47916747,106.66,106.64,0.5]
[1743971908906,68.47916747,106.66,106.62,0.5]
[1743971909131,68.47916747,106.65,106.61,0.5]
[1743971909342,26.0,106.7,106.64,0.5]
[1743971909635,68.47916747,106.71,106.65,0.5]
[1743971909836,361.09916747,106.74,106.67,0.5]
[1743971910013,68.47916747,106.72,106.68,0.5]
[1743971910332,292.62,106.74,106.68,0.5]
[1743971910639,68.47916747,106.7,106.65,0.5]
[1743971910848,361.09916747,106.74,106.65,0.5]
[1743971911007,68.47916747,106.66,106.59,0.5]
[1743971911202,68.47916747,106.6,106.56,0.5]
[1743971911407,68.47916747,106.58,106.56,0.5]
[1743971911709,68.47916747,106.57,106.56,0.5]
[1743971912439,68.47916747,106.62,106.56,0.5]
[1743971912608,68.47916747,106.57,106.54,0.5]
[1743971912946,292.62,106.65,106.62,0.5]
[1743971913229,292.62,106.65,106.59,0.5]
[1743971913427,68.47916747,106.63,106.59,0.5]
[1743971913603,68.47916747,106.63,106.58,0.5]
[1743971913806,68.47916747,106.62,106.58,0.5]
[1743971914008,68.47916747,106.63,106.58,68.97916747]
[1743971914205,292.62,106.65,106.61,0.5]
[1743971914440,68.47916747,106.64,106.61,0.5]
[1743971915015,292.62,106.65,106.63,0.5]
[1743971915231,1.5856,106.78,106.61,68.47916747]
[1743971915232,6.179,106.74,106.66,0.5]
[1743971915444,68.47916747,106.71,106.67,0.5]
[1743971915648,13.34421922,106.74,106.73,0.5]
[1743971915935,13.34421922,106.74,106.68,19.07613357]
[1743971915936,13.34421922,106.74,106.69,68.97916747]
[1743971916107,68.47916747,106.73,106.7,0.5]
[1743971916311,94.47916747,106.71,106.65,0.5]
[1743971916610,68.47916747,106.69,106.65,0.5]
[1743971916808,68.47916747,106.68,106.65,0.5]
[1743971917047,68.47916747,106.66,106.61,0.5]
[1743971917535,68.47916747,106.65,106.61,0.5]
[1743971917746,68.47916747,106.65,106.58,0.28432314]
[1743971917747,137.24265808,106.59,106.48,0.03]
[1743971917984,137.24265808,106.59,106.48,68.50916747]
[1743971917985,68.47916747,106.54,106.48,68.50916747]
[1743971918117,68.47916747,106.53,106.48,0.03]
[1743971918445,68.47916747,106.56,106.48,0.03]
[1743971918604,26.0,106.53,106.48,0.03]
[1743971918811,68.47916747,106.5,106.43,13.70579273]
[1743971919004,292.74,106.55,106.43,13.70579273]
[1743971919230,292.74,106.55,106.46,68.47916747]
[1743971919550,292.74,106.62,106.51,18.79181043]
[1743971919718,68.47916747,106.6,106.53,0.28432314]
[1743971919919,68.47916747,106.6,106.54,68.47916747]
[1743971920138,292.74,106.62,106.55,68.47916747]
[1743971920306,292.74,106.62,106.55,0.28432314]
[1743971920834,13.34421922,106.7,106.58,19.07613357]
[1743971921038,13.34421922,106.7,106.58,0.28432314]
[1743971921039,68.47916747,106.66,106.58,0.28432314]
[1743971921343,13.34421922,106.7,106.6,68.47916747]
[1743971921514,13.34421922,106.7,106.61,68.47916747]
[1743971921728,13.34421922,106.7,106.57,35.3834]
[1743971921729,68.47916747,106.63,106.53,32.3432]
[1743971921932,18.79181043,106.67,106.56,68.47916747]
[1743971922134,68.47916747,106.59,106.53,74.82236747]
[1743971922439,68.47916747,106.55,106.49,68.47916747]
[1743971922773,68.47916747,106.53,106.47,6.3059]
[1743971922924,68.47916747,106.52,106.47,6.3059]
[1743971923126,68.47916747,106.56,106.48,0.28432314]
[1743971923349,68.47916747,106.56,106.47,74.78506747]
[1743971923350,68.47916747,106.53,106.47,6.3059]
[1743971923549,68.47916747,106.56,106.48,68.47916747]
[1743971923738,68.47916747,106.56,106.48,0.14216157]
[1743971923928,26.0,106.59,106.5,68.62132904]
[1743971924127,68.47916747,106.57,106.52,0.28432314]
[1743971924457,26.0,106.58,106.48,87.2709779]
[1743971924628,68.47916747,106.54,106.5,0.28432314]
[1743971924829,361.25916747,106.62,106.52,68.90565218]
[1743971925037,68.47916747,106.58,106.53,68.47916747]
[1743971925429,68.47916747,106.58,106.52,68.76349061]
[1743971925632,361.25916747,106.62,106.51,0.28432314]
[1743971925845,26.0,106.59,106.49,68.47916747]
[1743971926037,68.47916747,106.55,106.51,0.14216157]
[1743971926337,361.25916747,106.62,106.52,68.47916747]
[1743971926338,26.0,106.59,106.52,68.47916747]
[1743971926536,68.47916747,106.57,106.52,68.47916747]
[1743971926747,361.25916747,106.62,106.54,68.47916747]
[1743971926946,292.78,106.62,106.56,68.47916747]
[1743971927134,292.78,106.62,106.57,0.28432314]
[1743971927335,68.47916747,106.68,106.59,68.47916747]
[1743971927543,68.47916747,106.66,106.61,0.28432314]
[1743971927737,292.92,106.69,106.62,68.47916747]
[1743971927983,292.92,106.69,106.61,0.28432314]
[1743971928253,68.47916747,106.62,106.54,19.07613357]
[1743971928551,68.47916747,106.57,106.53,0.28432314]
[1743971928727,68.47916747,106.55,106.5,68.47916747]
[1743971928928,292.92,106.6,106.5,68.47916747]
[1743971929155,68.47916747,106.55,106.5,68.47916747]
[1743971929363,68.47916747,106.55,106.49,68.62132904]
[1743971929534,68.47916747,106.54,106.49,68.47916747]
[1743971929938,292.92,106.6,106.47,6.3059]
[1743971930172,292.92,106.6,106.48,0.14216157]
[1743971930348,292.92,106.6,106.47,15.6974]
[1743971930349,68.47916747,106.56,106.47,6.3059]
[1743971930548,293.34648471,106.6,106.5,0.28432314]
[1743971930549,292.92,106.6,106.5,0.28432314]
[1743971930750,68.47916747,106.55,106.49,68.47916747]
[1743971930970,68.47916747,106.54,106.49,68.47916747]
[1743971931153,292.92,106.6,106.47,15.6982]
[1743971931154,68.47916747,106.52,106.47,74.78506747]
[1743971931356,68.47916747,106.56,106.47,74.78506747]
[1743971931357,68.47916747,106.56,106.47,0.14216157]
[1743971931675,68.47916747,106.51,106.46,68.47916747]
[1743971931878,68.47916747,106.49,106.41,15.5526]
[1743971932043,68.47916747,106.47,106.45,0.03]
[1743971932244,68.47916747,106.5,106.45,0.03]
[1743971932245,68.47916747,106.46,106.45,0.03]
[1743971932876,361.43916747,106.5,106.45,0.03]
[1743971933181,68.47916747,106.46,106.41,0.28432314]
[1743971933471,68.47916747,106.46,106.4,96.6692779]
[1743971933858,68.47916747,106.48,106.43,87.12881633]
[1743971934179,68.47916747,106.56,106.46,0.14216157]
[1743971934337,26.0,106.53,106.45,0.28432314]
[1743971934541,68.47916747,106.5,106.45,0.42648471]
[1743971934749,68.47916747,106.5,106.45,0.28432314]
[1743971934980,68.47916747,106.56,106.47,0.28432314]
[1743971935185,68.47916747,106.5,106.44,0.28432314]
[1743971935497,68.47916747,106.5,106.46,0.28432314]
[1743971935657,68.47916747,106.56,106.46,0.28432314]
[1743971935848,68.47916747,106.51,106.46,68.76349061]
[1743971936168,68.47916747,106.5,106.44,18.79181043]
[1743971936349,68.47916747,106.51,106.46,87.55530104]
[1743971936809,68.47916747,106.56,106.48,0.28432314]
[1743971937177,68.47916747,106.53,106.48,0.28432314]
[1743971937487,68.47916747,106.53,106.48,9.67562314]
[1743971937887,68.47916747,106.53,106.48,78.15479061]
[1743971938215,293.06,106.57,106.47,9.3918]
[1743971938377,68.47916747,106.55,106.5,18.933972]
[1743971938578,293.06,106.57,106.51,0.14216157]
[1743971938813,68.47916747,106.62,106.54,0.28432314]
[1743971939117,68.47916747,106.59,106.54,68.76349061]
[1743971939323,68.47916747,106.59,106.54,0.28432314]
[1743971939800,68.47916747,106.62,106.54,87.55530104]
[1743971940100,293.08,106.64,106.56,0.28432314]
[1743971940302,68.47916747,106.63,106.58,68.90565218]
[1743971940533,361.55916747,106.64,106.6,0.42648471]
[1743971940701,93.14622559,106.74,106.61,19.07613357]
[1743971940702,293.06,106.71,106.61,19.07613357]
[1743971940904,293.06,106.71,106.66,0.14216157]
[1743971941087,68.47916747,106.69,106.65,0.14216157]
[1743971941407,293.06,106.71,106.67,68.90565218]
[1743971941579,13.34421922,106.76,106.69,0.42648471]
[1743971941784,13.34421922,106.76,106.71,0.42648471]
[1743971942085,13.34421922,106.76,106.73,68.90565218]
[1743971942284,0.063,106.77,106.69,19.07613357]
[1743971942484,0.063,106.77,106.7,68.47916747]
[1743971942813,68.47916747,106.75,106.66,19.07613357]
[1743971942998,68.47916747,106.75,106.67,0.28432314]
[1743971943198,68.47916747,106.75,106.71,0.28432314]
[1743971943400,68.47916747,106.75,106.7,68.47916747]
[1743971943703,68.47916747,106.73,106.66,19.07613357]
[1743971943917,0.063,106.77,106.72,68.47916747]
[1743971944088,68.47916747,106.76,106.71,87.55530104]
[1743971944299,0.063,106.77,106.72,87.55530104]
[1743971944504,0.063,106.77,106.76,87.2709779]
[1743971944701,68.47916747,106.82,106.76,0.42648471]
[1743971944903,68.47916747,106.82,106.72,6.6018]
[1743971944904,0.063,106.84,106.78,19.07613357]
[1743971945212,68.47916747,106.82,106.74,68.47916747]
[1743971945421,68.47916747,106.81,106.77,19.07613357]
[1743971945791,68.47916747,106.8,106.72,6.6018]
[1743971946017,0.063,106.84,106.73,87.55530104]
[1743971946018,26.0,106.82,106.73,87.55530104]
[1743971946222,68.47916747,106.79,106.73,87.55530104]
[1743971946429,0.063,106.84,106.75,87.55530104]
[1743971946633,0.063,106.84,106.79,0.42648471]
[1743971946914,0.063,106.84,106.8,18.64964886]
[1743971947413,68.54216747,106.84,106.81,0.42648471]
[1743971947613,0.063,106.82,106.78,18.64964886]
[1743971947927,0.063,106.82,106.8,19.07613357]
[1743971948218,0.063,106.82,106.8,68.90565218]
[1743971948417,0.063,106.82,106.8,0.28432314]
[1743971948619,0.063,106.82,106.8,18.64964886]
[1743971949002,0.063,106.82,106.8,0.28432314]
[1743971949407,0.063,106.82,106.8,18.933972]
[1743971949719,0.063,106.82,106.81,19.07613357]
[1743971949922,0.063,106.82,106.81,0.42648471]
[1743971950120,0.063,106.82,106.81,87.55530104]
[1743971950626,0.063,106.84,106.82,0.28432314]
[1743971951122,0.063,106.84,106.82,68.90565218]
[1743971951501,0.063,106.84,106.83,18.64964886]
[1743971951836,0.063,106.84,106.8,9.363]
[1743971952123,0.063,106.84,106.82,68.90565218]
[1743971952305,0.063,106.84,106.83,18.64964886]
[1743971952503,0.063,106.84,106.83,87.55530104]
[1743971952703,0.063,106.84,106.75,23.4171]
[1743971952906,68.47916747,106.83,106.77,68.47916747]
[1743971953105,68.47916747,106.8,106.72,6.6018]
[1743971953315,68.47916747,106.79,106.74,68.47916747]
[1743971953502,68.47916747,106.78,106.73,68.47916747]
[1743971953697,68.47916747,106.78,106.72,6.6018]
[1743971953923,68.47916747,106.8,106.74,68.47916747]
[1743971954219,68.47916747,106.81,106.77,18.64964886]
[1743971954410,292.543,106.84,106.75,0.28432314]
[1743971954611,68.47916747,106.81,106.77,18.64964886]
[1743971954822,68.47916747,106.82,106.78,18.64964886]
[1743971955171,0.063,106.84,106.8,87.12881633]
[1743971955435,0.063,106.84,106.82,18.64964886]
[1743971955807,68.47916747,106.83,106.73,9.65372314]
[1743971956008,68.47916747,106.79,106.72,6.6018]
[1743971956205,68.47916747,106.79,106.73,68.47916747]
[1743971956420,68.47916747,106.78,106.74,18.64964886]
[1743971956611,26.0,106.82,106.74,18.64964886]
[1743971956809,68.47916747,106.76,106.69,9.3729]
[1743971957009,68.47916747,106.73,106.66,9.3755]
[1743971957224,68.47916747,106.8,106.68,68.47916747]
[1743971957426,68.47916747,106.75,106.66,32.8144]
[1743971957734,68.47916747,106.8,106.72,18.64964886]
[1743971958107,318.42,106.82,106.73,18.79181043]
[1743971958297,68.47916747,106.78,106.73,18.79181043]
[1743971958498,318.42,106.82,106.74,18.64964886]
[1743971958694,68.47916747,106.76,106.68,68.47916747]
[1743971958939,318.42,106.82,106.73,18.64964886]
[1743971959102,318.42,106.82,106.74,87.12881633]
[1743971959303,318.42,106.82,106.74,18.64964886]
[1743971959609,292.42,106.82,106.76,68.47916747]
[1743971959800,0.063,106.84,106.78,87.12881633]
[1743971960003,68.47916747,106.83,106.76,0.28432314]
[1743971960227,0.063,106.84,106.78,19.07613357]
[1743971960228,68.47916747,106.82,106.78,19.07613357]
[1743971960549,68.47916747,106.83,106.79,18.64964886]
[1743971960703,68.47916747,106.82,106.74,68.47916747]
[1743971960901,0.063,106.84,106.78,0.14216157]
[1743971961100,0.063,106.84,106.79,18.64964886]
[1743971961306,0.063,106.84,106.8,87.55530104]
[1743971961528,0.063,106.84,106.83,68.90565218]
[1743971961730,30.063,106.84,106.83,87.55530104]
[1743971962337,0.063,106.84,106.83,19.07613357]
[1743971962518,0.063,106.84,106.83,87.55530104]
[1743971963599,0.063,106.84,106.83,96.91590104]
[1743971963825,0.063,106.86,106.85,0.42648471]
[1743971964009,0.063,106.86,106.85,18.64964886]
[1743971964538,0.063,106.86,106.85,87.55530104]
[1743971965531,0.063,106.86,106.85,96.91420104]
[1743971966732,0.063,106.87,106.86,18.64964886]
[1743971966933,0.063,106.87,106.86,87.55530104]
[1743971967340,0.063,106.87,106.86,156.03446851]
[1743971967707,0.063,106.87,106.86,165.39246851]
[1743971967907,0.063,106.88,106.86,165.39246851]
[1743971968146,0.063,106.88,106.87,87.55530104]
[1743971968343,0.063,106.89,106.88,19.07613357]
[1743971968549,0.063,106.92,106.88,87.55530104]
[1743971968716,0.063,106.92,106.91,87.55530104]
[1743971969351,0.063,106.93,106.92,19.07613357]
[1743971969542,0.063,106.93,106.92,87.55530104]
[1743971969740,0.063,106.93,106.92,96.90800104]
[1743971969938,0.063,106.93,106.92,165.38716851]
[1743971970241,0.063,106.93,106.92,28.42883357]
[1743971970448,0.063,106.93,106.92,165.38716851]
[1743971970658,0.063,106.95,106.92,165.38716851]
[1743971970659,0.063,106.95,106.92,188.76906851]
[1743971970864,0.063,106.95,106.94,87.55530104]
[1743971971227,0.063,106.98,106.95,19.07613357]
[1743971971551,0.063,106.98,106.97,87.55530104]
[1743971971753,0.063,106.98,106.97,96.90370104]
[1743971972628,292.14,107.09,106.98,19.07613357]
[1743971972929,292.14,107.09,107.02,87.12881633]
[1743971973127,292.14,107.09,107.03,0.42648471]
[1743971973332,68.47916747,107.08,107.04,18.64964886]
[1743971973771,81.2,107.15,107.06,18.64964886]
[1743971973929,292.02,107.16,107.08,68.90565218]
[1743971974134,68.47916747,107.14,107.1,18.64964886]
[1743971974333,68.47916747,107.13,107.04,101.17696747]
[1743971974638,68.47916747,107.13,107.08,18.64964886]
[1743971974841,360.49916747,107.16,107.04,68.47916747]
[1743971975041,68.47916747,107.1,107.04,0.28432314]
[1743971975254,292.02,107.16,107.02,9.344]
[1743971975464,68.47916747,107.11,107.07,18.64964886]
[1743971975631,360.49916747,107.16,107.07,18.64964886]
[1743971975832,68.47916747,107.11,107.07,18.64964886]
[1743971976263,360.49916747,107.16,107.08,19.07613357]
[1743971976436,292.02,107.16,107.08,87.55530104]
[1743971976765,68.47916747,107.13,107.08,87.55530104]
[1743971976936,68.47916747,107.13,107.07,68.47916747]
[1743971977137,360.49916747,107.16,107.06,0.28432314]
[1743971977342,360.49916747,107.16,107.07,18.64964886]
[1743971977557,360.49916747,107.16,107.07,68.47916747]
[1743971977762,68.47916747,107.12,107.06,68.76349061]
[1743971977943,292.02,107.16,107.07,87.12881633]
[1743971978145,68.47916747,107.13,107.07,87.12881633]
[1743971978349,68.47916747,107.12,107.07,87.12881633]
[1743971978563,292.02,107.16,107.1,18.64964886]
[1743971978873,360.49916747,107.16,107.11,0.42648471]
[1743971979079,68.47916747,107.16,107.12,18.64964886]
[1743971979441,0.063,107.18,107.12,18.64964886]
[1743971979652,68.47916747,107.16,107.12,18.64964886]
[1743971979975,68.47916747,107.15,107.09,68.47916747]
[1743971980269,68.47916747,107.14,107.1,18.64964886]
[1743971980468,26.063,107.18,107.1,18.64964886]
[1743971980676,26.063,107.18,107.11,18.64964886]
[1743971980872,68.47916747,107.16,107.12,0.28432314]
[1743971981071,0.063,107.18,107.14,18.64964886]
[1743971981373,0.063,107.18,107.12,0.42648471]
[1743971981750,0.063,107.18,107.14,18.64964886]
[1743971982186,0.063,107.18,107.15,18.64964886]
[1743971982481,0.063,107.18,107.17,87.55530104]
[1743971983645,0.063,107.24,107.18,19.07613357]
[1743971983955,68.47916747,107.22,107.15,9.3324]
[1743971984152,68.47916747,107.21,107.16,87.55530104]
[1743971984359,68.47916747,107.21,107.16,87.41313947]
[1743971984561,0.063,107.24,107.14,18.79181043]
[1743971984780,0.063,107.24,107.18,87.12881633]
[1743971984972,0.063,107.24,107.2,68.47916747]
[1743971985270,0.063,107.24,107.21,87.55530104]
[1743971985482,0.063,107.24,107.23,18.64964886]
[1743971985781,0.063,107.24,107.23,87.55530104]
[1743971985947,0.063,107.24,107.23,96.88100104]
[1743971986467,0.063,107.33,107.29,68.47916747]
[1743971986653,0.063,107.33,107.3,18.64964886]
[1743971986967,0.063,107.33,107.29,68.47916747]
[1743971986968,0.063,107.33,107.31,68.47916747]
[1743971987140,0.063,107.33,107.32,87.55530104]
[1743971987773,0.063,107.38,107.34,0.14216157]
[1743971987954,0.063,107.38,107.36,0.14216157]
[1743971988150,68.47916747,107.42,107.35,18.933972]
[1743971988151,296.5079,107.44,107.35,0.14216157]
[1743971988352,68.47916747,107.4,107.35,0.28432314]
[1743971988549,68.47916747,107.39,107.34,0.14216157]
[1743971988749,68.47916747,107.37,107.28,91.78236747]
[1743971988957,68.47916747,107.4,107.29,18.79181043]
[1743971989159,81.2,107.43,107.34,18.79181043]
[1743971989390,0.063,107.35,107.32,19.07613357]
[1743971989776,68.54216747,107.35,107.27,9.3221]
[1743971989981,0.063,107.35,107.31,68.47916747]
[1743971990280,0.063,107.35,107.33,68.90565218]
[1743971990458,0.063,107.35,107.34,19.07613357]
[1743971990663,68.54216747,107.35,107.24,18.79181043]
[1743971990955,0.063,107.35,107.27,68.47916747]
[1743971991170,68.47916747,107.34,107.26,68.62132904]
[1743971991480,0.063,107.35,107.28,18.79181043]
[1743971991678,0.063,107.35,107.32,18.79181043]
[1743971991855,0.063,107.35,107.32,18.933972]
[1743971992057,0.063,107.35,107.31,68.62132904]
[1743971992058,68.54216747,107.35,107.31,0.28432314]
[1743971992253,68.54216747,107.35,107.3,0.14216157]
[1743971992574,68.54216747,107.35,107.26,9.3224]
[1743971992770,68.54216747,107.35,107.28,0.14216157]
[1743971992771,68.47916747,107.33,107.28,0.14216157]
[1743971992980,68.47916747,107.31,107.22,68.47916747]
[1743971993221,68.47916747,107.34,107.28,0.14216157]
[1743971993222,26.0,107.34,107.28,0.14216157]
[1743971993373,68.47916747,107.32,107.28,18.79181043]
[1743971993579,0.063,107.35,107.29,0.28432314]
[1743971993774,68.47916747,107.33,107.29,0.28432314]
[1743971994004,1.6222,107.65,107.43,18.65547688]
[1743971994207,20.063,107.72,107.56,0.5]
[1743971994208,0.063,107.72,107.56,0.5]
[1743971994509,0.5,107.68,107.64,68.47916747]
[1743971994806,0.5,107.67,107.59,18.64964886]
[1743971994979,0.5,107.67,107.63,68.47916747]
[1743971995288,0.5,107.67,107.59,64.88027997]
[1743971995477,290.123,107.75,107.66,68.47916747]
[1743971995678,68.47916747,107.7,107.59,18.64964886]
[1743971995880,290.123,107.75,107.59,18.64964886]
[1743971996107,68.47916747,107.74,107.68,68.47916747]
[1743971996429,81.88638669,107.78,107.72,68.47916747]
[1743971996583,13.40721922,107.78,107.7,68.47916747]
[1743971996782,13.40721922,107.78,107.69,19.07613357]
[1743971996988,13.40721922,107.78,107.76,68.47916747]
[1743971997185,13.40721922,107.78,107.77,68.47916747]
[1743971997582,13.40721922,107.78,107.73,26.0]
[1743971997817,0.063,107.78,107.69,0.5]
[1743971997983,0.063,107.78,107.74,18.79181043]
[1743971998179,0.063,107.78,107.66,46.65790223]
[1743971998180,68.47916747,107.75,107.66,46.65790223]
[1743971998382,0.063,107.78,107.68,46.1854563]
[1743971998581,0.063,107.78,107.73,26.0]
[1743971998880,0.063,107.78,107.74,0.14216157]
[1743971999077,0.063,107.78,107.7,0.42648471]
[1743971999281,68.47916747,107.74,107.66,0.14216157]
[1743971999485,0.063,107.78,107.69,18.933972]
[1743971999705,0.063,107.78,107.7,68.62132904]
[1743971999918,68.54216747,107.78,107.72,68.62132904]
[1743972000213,68.47916747,107.75,107.68,26.0]
[1743972000518,68.47916747,107.69,107.61,9.2928]
[1743972000724,0.14216157,107.73,107.64,68.47916747]
[1743972000915,68.47916747,107.7,107.6,6.0424]
[1743972001221,68.47916747,107.67,107.59,9.2944]
[1743972001388,26.0,107.73,107.64,68.47916747]
[1743972001593,68.47916747,107.67,107.61,68.47916747]
[1743972001793,68.47916747,107.65,107.55,9.298]
[1743972001997,68.47916747,107.64,107.61,26.0]
[1743972002192,68.47916747,107.7,107.62,26.0]
[1743972002396,0.28432314,107.72,107.62,68.47916747]
[1743972002585,68.47916747,107.68,107.63,0.14216157]
[1743972002896,68.47916747,107.66,107.58,9.2949]
[1743972003105,68.76349061,107.7,107.56,0.14216157]
[1743972003106,68.47916747,107.64,107.56,0.14216157]
[1743972003292,0.14216157,107.69,107.57,0.14216157]
[1743972003517,68.47916747,107.76,107.57,0.14216157]
[1743972003518,0.03,107.84,107.74,24.92284886]
[1743972003825,292.51403716,108.04,107.91,0.14216157]
[1743972003991,67.78687762,108.0,107.88,86.72084962]
[1743972004195,26.0,107.97,107.87,19.07613357]
[1743972004392,26.0,107.97,107.83,9.2734]
[1743972004393,67.78687762,107.93,107.82,67.78687762]
[1743972004614,67.78687762,107.92,107.85,26.0]
[1743972004792,20.0,108.03,107.89,67.78687762]
[1743972004992,292.51403716,108.04,107.93,86.86301119]
[1743972005215,67.78687762,107.97,107.89,0.28432314]
[1743972005418,67.78687762,108.0,107.89,18.933972]
[1743972005702,67.78687762,107.95,107.89,18.933972]
[1743972005904,67.78687762,107.91,107.85,26.0]
[1743972006122,0.063,107.94,107.88,0.14216157]
[1743972006417,0.063,107.94,107.89,19.07613357]
[1743972006725,0.063,107.94,107.88,26.0]
[1743972006726,67.78687762,107.92,107.85,26.0]
[1743972006898,86.49952648,107.94,107.83,18.79181043]
[1743972007091,18.71264886,107.94,107.86,86.57868805]
[1743972007297,0.28432314,107.93,107.85,93.78687762]
[1743972007595,0.28432314,107.93,107.83,86.57868805]
[1743972007828,0.063,107.94,107.89,18.79181043]
[1743972008008,67.78687762,107.92,107.87,0.28432314]
[1743972008330,67.78687762,107.93,107.87,86.86301119]
[1743972008505,67.78687762,107.91,107.83,18.933972]
[1743972008713,0.063,107.94,107.88,18.933972]
[1743972008907,0.063,107.94,107.88,67.78687762]
[1743972009110,67.78687762,107.89,107.82,0.14216157]
[1743972009311,67.78687762,107.91,107.84,0.28432314]
[1743972009501,67.78687762,107.9,107.85,67.78687762]
[1743972009706,0.063,107.94,107.87,67.78687762]
[1743972010024,67.78687762,107.91,107.85,67.78687762]
[1743972010231,67.78687762,107.9,107.83,18.933972]
[1743972010405,26.0,107.92,107.84,0.28432314]
[1743972010717,67.78687762,107.88,107.84,0.14216157]
[1743972010925,67.78687762,107.89,107.8,18.79181043]
[1743972011128,67.84987762,107.94,107.85,68.07120076]
[1743972011296,67.78687762,107.91,107.87,0.14216157]
[1743972011500,67.78687762,107.9,107.86,0.14216157]
[1743972011699,67.78687762,107.9,107.78,13.52174557]
[1743972011959,26.0,107.91,107.84,18.933972]
[1743972012230,26.0,107.91,107.84,86.72084962]
[1743972012416,93.78687762,107.91,107.86,18.933972]
[1743972012723,67.78687762,107.89,107.86,0.14216157]
[1743972012910,26.0,107.92,107.88,0.14216157]
[1743972013110,67.78687762,107.92,107.88,0.14216157]
[1743972013696,0.063,107.94,107.87,0.28432314]
[1743972013897,0.063,107.94,107.89,19.07613357]